bitfinex-derivatives/quotes_BTCF0:USTF0_20250729
["timestamp","ask_amount","ask_price","bid_price","bid_amount"]
[1753805990371,0.07141359,117450.0,117440.0,8.32092611]
[1753805990571,0.2553965,117480.0,117470.0,0.1702665]
[1753805990868,0.08663948,117480.0,117470.0,1.59944655]
[1753805991173,0.68433648,117500.0,117490.0,0.1702375]
[1753805991472,0.68433648,117500.0,117490.0,0.8967975]
[1753805991473,0.5735915,117500.0,117490.0,0.8967975]
[1753805991670,0.5735915,117500.0,117490.0,0.72656]
[1753805991867,0.6220515,117500.0,117490.0,0.72656]
[1753805992275,0.2186976,117490.0,117480.0,0.2128058]
[1753805992576,0.2186976,117490.0,117480.0,0.9393258]
[1753805992768,0.1702376,117490.0,117480.0,0.9393258]
[1753805992969,0.1702376,117490.0,117480.0,1.3001258]
[1753805995265,0.2186976,117490.0,117480.0,1.2575642]
[1753805997472,0.1702521,117480.0,117470.0,0.4401568]
[1753805997678,0.3560321,117480.0,117470.0,0.99502]
[1753805998073,0.3560321,117480.0,117470.0,0.72512]
[1753805998375,0.9536621,117480.0,117470.0,0.8953866]
[1753805998577,0.5928621,117480.0,117470.0,0.8953866]
[1753805998771,0.4884865,117490.0,117470.0,0.8957866]
[1753805998972,0.6161694,117490.0,117480.0,0.51247215]
[1753805999176,0.2553694,117490.0,117480.0,0.8957721]
[1753805999679,0.3038294,117490.0,117480.0,0.72552]
[1753806000272,0.170281,117460.0,117450.0,1.00102315]
[1753806000581,0.170281,117460.0,117450.0,1.2991355]
[1753806000882,0.3038772,117470.0,117460.0,0.170281]
[1753806001174,0.1335986,117470.0,117450.0,0.4459434]
[1753806001374,0.1702955,117450.0,117440.0,7.12509066]
[1753806001580,0.2187555,117450.0,117440.0,6.71287748]
[1753806001782,0.2187555,117450.0,117440.0,7.43803748]
[1753806001971,0.2187555,117450.0,117440.0,6.71287748]
[1753806002167,0.2187555,117450.0,117440.0,7.36181596]
[1753806003380,0.6162389,117460.0,117450.0,0.1702955]
[1753806003582,0.218741,117460.0,117450.0,0.51251555]
[1753806003774,0.218741,117460.0,117450.0,0.1702955]
[1753806004383,0.6221001,117470.0,117460.0,0.1702811]
[1753806004589,0.2613001,117470.0,117460.0,1.23742115]
[1753806005176,0.2613001,117470.0,117460.0,0.8952011]
[1753806005382,0.2613001,117470.0,117460.0,1.23742115]
[1753806006089,0.04846,117470.0,117460.0,1.23742115]
[1753806006279,0.573619,117480.0,117470.0,0.1702666]
[1753806006477,0.573619,117480.0,117470.0,0.51248665]
[1753806006680,0.04846,117480.0,117470.0,0.51248665]
[1753806006878,0.04846,117490.0,117480.0,0.1702521]
[1753806007077,0.7534668,117500.0,117490.0,0.170238]
[1753806007278,0.6646068,117500.0,117490.0,0.170238]
[1753806007887,0.8782568,117500.0,117490.0,0.170238]
[1753806008087,1.0387568,117500.0,117490.0,0.170238]
[1753806008288,1.0407568,117500.0,117490.0,0.170238]
[1753806009899,0.592848,117490.0,117480.0,0.297926]
[1753806010098,0.592848,117490.0,117480.0,1.021566]
[1753806012700,0.592848,117490.0,117480.0,0.297926]
[1753806012894,1.29586805,117490.0,117480.0,0.72332]
[1753806013096,1.29586805,117490.0,117480.0,0.8935726]
[1753806013297,0.953648,117490.0,117480.0,0.8935726]
[1753806014305,0.592848,117490.0,117480.0,0.8935726]
[1753806014702,0.218698,117490.0,117480.0,1.23579265]
[1753806015007,0.603948,117490.0,117480.0,0.8935726]
[1753806015916,0.603948,117490.0,117480.0,0.8936126]
[1753806016104,0.605948,117490.0,117480.0,0.8936126]
[1753806017408,0.220698,117490.0,117480.0,1.2544126]
[1753806018002,0.437218,117490.0,117480.0,1.2544126]
[1753806018310,0.515258,117490.0,117480.0,1.2544126]
[1753806019405,0.4409881,117490.0,117480.0,1.2544126]
[1753806020203,0.4409881,117490.0,117480.0,1.59663265]
[1753806020409,0.1285,117490.0,117480.0,1.23583265]
[1753806020609,0.05046,117490.0,117480.0,1.59663265]
[1753806020908,0.04737,117490.0,117480.0,1.59663265]
[1753806021098,0.002,117490.0,117480.0,1.59663265]
[1753806022211,0.04737,117490.0,117480.0,1.59663265]
[1753806022711,0.04537,117490.0,117480.0,1.59663265]
[1753806023312,0.04537,117490.0,117480.0,1.59763265]
[1753806023503,0.2156081,117490.0,117480.0,1.59763265]
[1753806023704,0.2156081,117490.0,117480.0,0.5320926]
[1753806023904,0.9616581,117490.0,117480.0,0.8934926]
[1753806024104,0.9616581,117490.0,117480.0,0.1712926]
[1753806024409,0.6008581,117490.0,117480.0,0.8935726]
[1753806024604,0.5310309,117500.0,117480.0,1.4022744]
[1753806024804,0.7919444,117500.0,117490.0,0.509798]
[1753806025113,0.7919444,117500.0,117490.0,0.33956]
[1753806025506,0.7919444,117500.0,117490.0,0.85141]
[1753806025907,0.7919444,117500.0,117490.0,0.85133]
[1753806026109,0.7919444,117500.0,117490.0,0.04889]
[1753806026411,0.7919444,117500.0,117490.0,0.9409283]
[1753806026605,0.9361944,117500.0,117490.0,0.9409283]
[1753806026802,0.9361944,117500.0,117490.0,0.04889]
[1753806027508,1.13616485,117500.0,117490.0,0.04889]
[1753806027717,0.6237209,117500.0,117480.0,0.72284]
[1753806027905,0.5256313,117490.0,117480.0,0.77173]
[1753806029007,0.5256313,117490.0,117480.0,0.90906]
[1753806029409,0.5256313,117490.0,117480.0,0.98176]
[1753806029606,0.5256313,117490.0,117480.0,1.15251]
[1753806030718,0.5256313,117490.0,117480.0,1.49473005]
[1753806031215,0.1702384,117490.0,117480.0,1.66498285]
[1753806034513,0.1702384,117490.0,117480.0,2.02578285]
[1753806036721,0.1702384,117490.0,117480.0,0.94242285]
[1753806037015,0.1702384,117490.0,117480.0,2.02390285]
[1753806041719,0.2079484,117490.0,117480.0,2.02390285]
[1753806044330,0.2079484,117490.0,117480.0,1.30322285]
[1753806044625,0.170228,117500.0,117490.0,0.6151879]
[1753806044928,0.3327394,117510.0,117500.0,0.6151735]
[1753806045121,0.3327394,117510.0,117500.0,2.03743355]
[1753806045824,0.2901848,117510.0,117500.0,2.03743355]
[1753806046131,0.4033452,117530.0,117520.0,0.6151445]
[1753806046132,0.2978341,117530.0,117520.0,0.6151445]
[1753806046321,0.2978341,117530.0,117520.0,1.67644455]
[1753806046524,0.1701927,117530.0,117520.0,2.03724455]
[1753806046827,0.2978076,117540.0,117530.0,0.6151301]
[1753806047028,0.30825735,117540.0,117530.0,0.95735015]
[1753806048731,0.26571295,117540.0,117530.0,0.95735015]
[1753806049028,0.2127196,117540.0,117530.0,1.31815015]
[1753806049330,0.170164,117550.0,117540.0,0.6151156]
[1753806049532,0.1701477,117560.0,117550.0,0.6151011]
[1753806049734,0.1701477,117560.0,117550.0,0.95732115]
[1753806050230,0.1701477,117560.0,117550.0,0.78717005]
[1753806050429,0.1701477,117560.0,117550.0,0.95732085]
[1753806050832,0.2072977,117560.0,117550.0,0.95732085]
[1753806052132,0.2072977,117560.0,117550.0,0.6151008]
[1753806052524,0.21765039,117560.0,117550.0,0.95732085]
[1753806052827,0.18050039,117560.0,117550.0,0.44495]
[1753806053129,0.21765039,117560.0,117550.0,0.44495]
[1753806053436,0.27709039,117560.0,117550.0,0.44495]
[1753806054935,0.27709039,117560.0,117550.0,0.6151008]
[1753806055125,0.27709039,117560.0,117550.0,0.44495]
[1753806056032,0.27709039,117560.0,117550.0,0.6151008]
[1753806057635,0.21765039,117560.0,117550.0,0.6151008]
[1753806058531,0.21765039,117560.0,117550.0,0.44495]
[1753806058736,0.21765039,117560.0,117550.0,0.615101]
[1753806058930,0.21765039,117560.0,117550.0,0.44495]
[1753806059234,0.21765039,117560.0,117550.0,0.6151009]
[1753806060729,0.21765039,117560.0,117550.0,0.95732095]
[1753806061030,0.63789039,117560.0,117550.0,0.44495]
[1753806061232,0.63789039,117560.0,117550.0,1.16251]
[1753806061433,0.63789039,117560.0,117550.0,1.332661]
[1753806061632,0.21765039,117560.0,117550.0,1.332661]
[1753806061833,0.21765039,117560.0,117550.0,1.16251]
[1753806062029,0.21765039,117560.0,117550.0,1.3326616]
[1753806062229,0.21765039,117560.0,117550.0,1.16251]
[1753806062427,0.27709039,117560.0,117550.0,1.16251]
[1753806063344,0.27709039,117560.0,117550.0,1.3326616]
[1753806063741,0.04750269,117560.0,117550.0,1.16251]
[1753806063943,0.01035269,117560.0,117550.0,1.50473005]
[1753806064135,0.42868418,117570.0,117550.0,1.50473005]
[1753806064442,0.42868418,117570.0,117560.0,0.78717005]
[1753806064637,0.46583418,117570.0,117560.0,0.78717005]
[1753806065146,0.46583418,117570.0,117560.0,0.44495]
[1753806065439,0.87775868,117570.0,117560.0,0.44495]
[1753806065645,0.87775868,117570.0,117560.0,0.04526]
[1753806065849,0.53553863,117570.0,117560.0,0.04526]
[1753806066142,0.87775868,117570.0,117560.0,0.04526]
[1753806066648,0.53553863,117570.0,117560.0,0.44495]
[1753806073849,0.43894863,117570.0,117560.0,0.68833461]
[1753806074653,0.45828969,117570.0,117560.0,0.68833461]
[1753806074854,0.48988969,117570.0,117560.0,0.68833461]
[1753806075655,0.48988969,117570.0,117560.0,0.68933461]
[1753806076057,0.48988969,117570.0,117560.0,1.16507]
[1753806076358,0.48988969,117570.0,117560.0,1.16407]
[1753806076658,0.48988969,117570.0,117560.0,1.16607]
[1753806076961,0.48988969,117570.0,117560.0,1.40945461]
[1753806077156,0.48988969,117570.0,117560.0,1.40745461]
[1753806077553,0.54044969,117570.0,117560.0,0.44495]
[1753806077952,0.7838343,117570.0,117560.0,0.12422]
[1753806079057,0.7838343,117570.0,117560.0,0.34635]
[1753806079258,0.54044969,117570.0,117560.0,0.34635]
[1753806079459,0.7838343,117570.0,117560.0,0.44664]
[1753806080058,0.54044969,117570.0,117560.0,0.44664]
[1753806080259,0.7838343,117570.0,117560.0,0.44664]
[1753806081059,0.54044969,117570.0,117560.0,0.44664]
[1753806081255,0.7838343,117570.0,117560.0,0.44664]
[1753806082260,0.54044969,117570.0,117560.0,0.44664]
[1753806082560,0.7838343,117570.0,117560.0,0.44664]
[1753806083462,0.54044969,117570.0,117560.0,0.44664]
[1753806083663,0.7838343,117570.0,117560.0,0.44664]
[1753806084055,0.54044969,117570.0,117560.0,0.44664]
[1753806084662,1.20784969,117570.0,117560.0,0.69002461]
[1753806085162,1.20784969,117570.0,117560.0,0.44664]
[1753806086163,1.20787826,117570.0,117560.0,0.44664]
[1753806088858,1.20787826,117570.0,117560.0,0.69002461]
[1753806089361,0.48991826,117570.0,117560.0,0.69002461]
[1753806089664,1.20703826,117570.0,117560.0,0.44664]
[1753806089965,1.25735826,117570.0,117560.0,0.44664]
[1753806092162,0.45831826,117570.0,117560.0,0.69002461]
[1753806092368,1.17435826,117570.0,117560.0,0.69002461]
[1753806092571,1.20595826,117570.0,117560.0,0.69002461]
[1753806094164,0.48991826,117570.0,117560.0,0.44664]
[1753806094367,0.54047826,117570.0,117560.0,0.44664]
[1753806095067,0.09751826,117570.0,117560.0,2.00980922]
[1753806095272,0.43974,117590.0,117570.0,0.03628]
[1753806095460,0.04678,117580.0,117570.0,0.13657]
[1753806095860,0.07798,117580.0,117570.0,0.13657]
[1753806096666,0.04678,117580.0,117570.0,0.74075461]
[1753806096861,0.05681184,117590.0,117580.0,0.25235]
[1753806097064,0.05681184,117590.0,117580.0,0.85653461]
[1753806097260,0.05681184,117590.0,117580.0,1.57197461]
[1753806097469,0.04678,117590.0,117580.0,1.57197461]
[1753806098666,0.04678,117590.0,117580.0,1.32859]
[1753806098868,0.04678,117590.0,117580.0,1.57197461]
[1753806104476,0.04697,117610.0,117580.0,1.84000261]
[1753806104674,0.3608,117600.0,117580.0,1.07624]
[1753806104870,0.40777,117600.0,117590.0,0.24338461]
[1753806105976,0.40777,117600.0,117590.0,0.31029571]
[1753806106874,0.40777,117600.0,117590.0,0.0669111]
[1753806107070,0.41751476,117600.0,117590.0,0.24338461]
[1753806107275,0.40777,117600.0,117590.0,0.24338461]
[1753806107577,0.40777,117600.0,117590.0,0.27292461]
[1753806108470,0.59246,117600.0,117590.0,0.27292461]
[1753806108873,0.66225,117600.0,117590.0,0.27292461]
[1753806109175,0.43956,117600.0,117590.0,0.27292461]
[1753806110274,0.63806,117600.0,117590.0,0.27292461]
[1753806110576,0.70785,117600.0,117590.0,0.27292461]
[1753806110776,0.70785,117600.0,117590.0,0.34010809]
[1753806111774,0.80333,117600.0,117590.0,0.34010809]
[1753806112180,0.80333,117600.0,117590.0,0.02954]
[1753806112382,0.80333,117600.0,117590.0,0.27292461]
[1753806113777,0.80333,117600.0,117590.0,0.98528461]
[1753806115181,0.80333,117600.0,117590.0,0.7419]
[1753806115382,0.80333,117600.0,117590.0,0.98528461]
[1753806116484,0.80333,117600.0,117590.0,1.04637693]
[1753806117988,0.80333,117600.0,117590.0,0.98528461]
[1753806119281,0.07876,117590.0,117580.0,0.2699]
[1753806119481,1.04671461,117590.0,117580.0,0.2699]
[1753806119688,0.44253,117580.0,117570.0,0.06109232]
[1753806119883,0.26966,117570.0,117560.0,0.06109232]
[1753806120081,1.04671461,117570.0,117560.0,0.06109232]
[1753806120282,0.80333,117570.0,117560.0,0.06109232]
[1753806120785,1.04671461,117570.0,117560.0,0.06109232]
[1753806122286,1.75815461,117570.0,117560.0,0.06109232]
[1753806122487,0.80333,117570.0,117560.0,0.06109232]
[1753806123092,1.04671461,117570.0,117560.0,0.06109232]
[1753806123390,0.80333,117570.0,117560.0,0.06109232]
[1753806125092,1.04671461,117570.0,117560.0,0.06109232]
[1753806125293,0.44253,117560.0,117550.0,0.07630152]
[1753806125584,0.80333,117560.0,117550.0,0.07630152]
[1753806125991,0.81320796,117560.0,117550.0,0.07630152]
[1753806127092,0.88178844,117560.0,117550.0,0.07630152]
[1753806127792,1.12517305,117560.0,117550.0,0.07630152]
[1753806128190,0.26966,117550.0,117540.0,0.97336007]
[1753806128386,0.71137489,117550.0,117540.0,1.00390007]
[1753806128694,0.71137489,117550.0,117540.0,1.05229007]
[1753806128997,0.71137489,117550.0,117540.0,0.82084007]
[1753806129296,0.71137489,117550.0,117540.0,0.10668007]
[1753806129484,0.71137489,117550.0,117540.0,0.15507007]
[1753806129688,0.71137489,117550.0,117540.0,0.04839]
[1753806129888,0.71137489,117550.0,117540.0,0.23145]
[1753806130098,0.71137489,117550.0,117540.0,0.33853162]
[1753806130290,0.75834489,117550.0,117540.0,0.33853162]
[1753806130596,0.75834489,117550.0,117540.0,0.43816162]
[1753806130797,0.39754489,117550.0,117540.0,1.75622623]
[1753806131295,0.39754489,117550.0,117540.0,1.75621707]
[1753806132699,0.56769579,117550.0,117540.0,1.92638247]
[1753806134399,0.47574521,117550.0,117540.0,1.92638247]
[1753806135696,0.56686684,117560.0,117550.0,0.5134412]
[1753806135697,0.6228839,117560.0,117550.0,0.5134412]
[1753806135894,0.4003839,117560.0,117550.0,0.75682581]
[1753806136095,0.8848839,117560.0,117550.0,0.45036246]
[1753806136401,1.0513139,117560.0,117550.0,0.2501812]
[1753806136601,1.0513139,117560.0,117550.0,1.1260612]
[1753806137501,1.0513139,117560.0,117550.0,1.20254602]
[1753806138096,0.6905139,117560.0,117550.0,1.20254602]
[1753806138397,1.06120168,117560.0,117550.0,1.20254602]
[1753806138600,1.06120168,117560.0,117550.0,1.44593063]
[1753806139500,1.06120168,117560.0,117550.0,1.20254602]
[1753806139701,1.06120168,117560.0,117550.0,1.44593063]
[1753806140401,1.06120168,117560.0,117550.0,1.20254602]
[1753806140597,1.06120168,117560.0,117550.0,1.44593063]
[1753806142800,0.6479672,117560.0,117550.0,1.36944581]
[1753806144498,0.6479672,117560.0,117550.0,1.47651827]
[1753806146807,0.5309339,117570.0,117560.0,0.1701372]
[1753806147108,0.7330074,117580.0,117570.0,0.5134127]
[1753806147302,0.5178074,117580.0,117570.0,1.46971731]
[1753806147902,0.7330074,117580.0,117570.0,1.46971731]
[1753806148099,0.7330074,117580.0,117570.0,1.2263327]
[1753806148299,0.7330074,117580.0,117570.0,1.46971731]
[1753806150698,0.2552256,117560.0,117550.0,0.4056181]
[1753806150902,1.37977761,117560.0,117550.0,0.9142116]
[1753806151206,1.0938556,117560.0,117550.0,0.9142116]
[1753806151406,1.0938556,117560.0,117550.0,1.2271216]
[1753806151915,1.0938556,117560.0,117550.0,1.47050621]
[1753806152111,1.0938556,117560.0,117550.0,0.75682621]
[1753806152313,1.0938556,117560.0,117550.0,1.47058621]
[1753806153206,0.7330556,117560.0,117550.0,1.47058621]
[1753806156908,0.3046256,117560.0,117550.0,1.47058621]
[1753806157113,0.2195516,117560.0,117550.0,1.47058621]
[1753806157315,0.1701516,117560.0,117550.0,1.47058621]
[1753806160117,0.2195516,117560.0,117550.0,1.47058621]
[1753806160316,0.2944816,117560.0,117550.0,1.47058621]
[1753806162620,0.2195516,117560.0,117550.0,1.47058621]
[1753806164121,0.2894516,117560.0,117550.0,1.47058621]
[1753806166523,0.2894516,117560.0,117550.0,1.2272016]
[1753806166713,0.5761016,117560.0,117550.0,0.75682621]
[1753806166918,0.6243816,117560.0,117550.0,1.46718621]
[1753806171327,0.6243816,117560.0,117550.0,0.34329]
[1753806171528,1.22856621,117560.0,117550.0,1.05229]
[1753806171826,1.22856621,117560.0,117550.0,1.2224416]
[1753806172029,0.9851816,117560.0,117550.0,1.2226816]
[1753806172737,0.9851816,117560.0,117550.0,1.46606621]
[1753806173223,0.9851816,117560.0,117550.0,0.75682621]
[1753806173429,0.9851816,117560.0,117550.0,1.46602621]
[1753806174135,0.9851816,117560.0,117550.0,1.2226416]
[1753806174547,0.3571516,117560.0,117550.0,1.46602621]
[1753806174843,0.6243816,117560.0,117550.0,1.46602621]
[1753806175040,0.04923,117570.0,117560.0,0.5066871]
[1753806175237,1.07956797,117590.0,117580.0,0.5066581]
[1753806175432,1.07956797,117590.0,117580.0,1.45916271]
[1753806175641,1.07956797,117590.0,117580.0,1.2157781]
[1753806177149,1.07956797,117590.0,117580.0,0.8792281]
[1753806177352,1.07956797,117590.0,117580.0,1.0772781]
[1753806180040,1.07956797,117590.0,117580.0,1.32066271]
[1753806181045,0.7876237,117590.0,117580.0,1.32066271]
[1753806181341,0.9366737,117590.0,117580.0,1.32066271]
[1753806181540,0.9849537,117590.0,117580.0,1.32066271]
[1753806181941,0.6241537,117590.0,117580.0,1.32066271]
[1753806182247,0.6241537,117590.0,117580.0,1.33964362]
[1753806186546,0.6241537,117590.0,117580.0,1.09625901]
[1753806186847,0.6241537,117590.0,117580.0,1.33964362]
[1753806190354,0.9849537,117590.0,117580.0,1.09625901]
[1753806190554,0.9849537,117590.0,117580.0,1.23347901]
[1753806190944,1.22833831,117590.0,117580.0,0.30779091]
[1753806191144,1.22833831,117590.0,117580.0,0.89688901]
[1753806191647,1.22833831,117590.0,117580.0,1.23343901]
[1753806191847,0.9849537,117590.0,117580.0,1.23343901]
[1753806194255,0.9849537,117590.0,117580.0,1.47682362]
[1753806194655,0.9849537,117590.0,117580.0,1.23343901]
[1753806198660,0.9849537,117590.0,117580.0,1.47682362]
[1753806200253,0.9849537,117590.0,117580.0,1.23343901]
[1753806200254,0.6241537,117590.0,117580.0,1.23343901]
[1753806204762,0.6241537,117590.0,117580.0,0.52563901]
[1753806204957,0.6241537,117590.0,117580.0,1.23331901]
[1753806205551,0.6241537,117590.0,117580.0,0.52563901]
[1753806205758,0.6241537,117590.0,117580.0,1.23327901]
[1753806206464,0.6241537,117590.0,117580.0,0.52563901]
[1753806206663,0.6241537,117590.0,117580.0,1.23327901]
[1753806208863,0.6241537,117590.0,117580.0,0.52563901]
[1753806209066,0.6241537,117590.0,117580.0,1.23327901]
[1753806209265,0.9849537,117590.0,117580.0,1.23327901]
[1753806209560,0.2855139,117560.0,117540.0,0.25547246]
[1753806209762,0.6260615,117550.0,117540.0,1.10192246]
[1753806209959,0.86944611,117550.0,117540.0,0.39432246]
[1753806210153,0.86944611,117550.0,117540.0,1.31961846]
[1753806210352,0.626076,117540.0,117530.0,0.12638466]
[1753806210565,0.626076,117540.0,117530.0,0.24592246]
[1753806210567,1.23026061,117540.0,117530.0,0.24592246]
[1753806210768,0.7111838,117530.0,117520.0,0.33478]
[1753806211062,1.31536841,117530.0,117520.0,0.33478]
[1753806211466,1.31536841,117530.0,117520.0,0.5049749]
[1753806211767,1.32458071,117530.0,117520.0,0.5049749]
[1753806211963,2.03214071,117530.0,117520.0,0.33478]
[1753806212157,2.03214071,117530.0,117520.0,0.07946]
[1753806212461,0.1702239,117500.0,117490.0,0.5310292]
[1753806212660,0.2199184,117490.0,117480.0,1.53344792]
[1753806212862,0.2946984,117490.0,117480.0,1.53344792]
[1753806213054,0.2946984,117490.0,117480.0,1.77683253]
[1753806213366,0.2946984,117490.0,117480.0,1.82436253]
[1753806213564,0.2946984,117490.0,117480.0,1.5622573]
[1753806213865,0.2946984,117490.0,117480.0,1.80564191]
[1753806214059,0.2946984,117490.0,117480.0,1.5622573]
[1753806214258,0.12446,117490.0,117480.0,1.80564191]
[1753806214659,0.2946984,117490.0,117480.0,1.80564191]
[1753806215268,0.6261484,117490.0,117480.0,1.2552635]
[1753806216164,0.6261484,117490.0,117480.0,0.5476235]
[1753806216362,1.23033301,117490.0,117480.0,1.2127016]
[1753806216667,1.23033301,117490.0,117480.0,0.5050616]
[1753806217357,0.9869484,117490.0,117480.0,0.5050616]
[1753806218963,0.6261484,117490.0,117480.0,1.10924621]
[1753806219266,1.18402417,117510.0,117500.0,0.1702239]
[1753806219473,1.18402417,117510.0,117500.0,1.45622851]
[1753806220165,0.62613,117510.0,117500.0,1.45622851]
[1753806220474,0.2199,117510.0,117500.0,1.45622851]
[1753806220769,0.2199,117510.0,117500.0,1.55530176]
[1753806221671,0.29468,117510.0,117500.0,1.55530176]
[1753806221874,0.5214,117510.0,117500.0,1.55530176]
[1753806222074,0.62613,117510.0,117500.0,0.5050039]
[1753806222285,0.6261339,117500.0,117490.0,0.5050089]
[1753806222569,0.9869339,117500.0,117490.0,1.2128489]
[1753806223371,0.9869339,117500.0,117490.0,0.70784]
[1753806225571,0.5735712,117510.0,117500.0,0.5059539]
[1753806225771,0.3297212,117510.0,117500.0,0.84841176]
[1753806225972,0.5219312,117510.0,117500.0,0.67818786]
[1753806226275,0.6530612,117510.0,117500.0,0.33573]
[1753806226574,0.6530612,117510.0,117500.0,0.5059539]
[1753806226778,1.0138612,117510.0,117500.0,1.04365]
[1753806226967,0.6956311,117500.0,117490.0,0.3499069]
[1753806227171,1.0989901,117500.0,117490.0,1.04365]
[1753806227373,1.0989901,117500.0,117490.0,1.2138885]
[1753806227571,1.0989901,117500.0,117490.0,1.04365]
[1753806228679,1.0989901,117500.0,117490.0,1.2138884]
[1753806229482,1.0564311,117500.0,117490.0,1.2138884]
[1753806238879,0.6956311,117500.0,117490.0,1.2138884]
[1753806239085,1.0564311,117500.0,117490.0,1.2138884]
[1753806239281,1.0778409,117500.0,117490.0,1.2138884]
[1753806241679,0.7170409,117500.0,117490.0,1.2138884]
[1753806242082,1.0778409,117500.0,117490.0,1.2138884]
[1753806242875,1.0778409,117500.0,117490.0,0.1702384]
[1753806243081,0.6105285,117490.0,117480.0,1.58523947]
[1753806243281,0.6319383,117490.0,117480.0,1.58523947]
[1753806244490,0.6319383,117490.0,117480.0,0.87731947]
[1753806244688,0.6319383,117490.0,117480.0,1.58523947]
[1753806245487,0.6319383,117490.0,117480.0,1.54267637]
[1753806245684,0.6319383,117490.0,117480.0,1.50011327]
[1753806245880,0.9927383,117490.0,117480.0,1.50011327]
[1753806246081,0.9927383,117490.0,117480.0,1.2564894]
[1753806246681,0.9927383,117490.0,117480.0,1.50011327]
[1753806247390,0.9927383,117490.0,117480.0,1.2564894]
[1753806248789,0.9927383,117490.0,117480.0,1.50011327]
[1753806249886,1.23636217,117490.0,117480.0,4e-05]
[1753806250783,1.23636217,117490.0,117480.0,0.170293]
[1753806251184,0.9927383,117490.0,117480.0,0.170293]
[1753806251386,0.9927383,117490.0,117480.0,0.506023]
[1753806251688,1.7006183,117490.0,117480.0,0.74964687]
[1753806252090,1.7006183,117490.0,117480.0,1.213943]
[1753806253494,1.7006183,117490.0,117480.0,1.45756687]
[1753806253990,0.9927383,117490.0,117480.0,1.45756687]
[1753806254193,0.9927383,117490.0,117480.0,1.213943]
[1753806255389,0.8005284,117490.0,117480.0,1.45756687]
[1753806255590,1.0017784,117490.0,117480.0,1.45756687]
[1753806255791,0.6409784,117490.0,117480.0,1.45756687]
[1753806255991,0.0214098,117490.0,117480.0,1.70119074]
[1753806256188,0.1916484,117490.0,117480.0,1.45756687]
[1753806256397,0.9855586,117490.0,117480.0,1.213943]
[1753806257187,0.9855586,117490.0,117480.0,0.506023]
[1753806257393,1.00690271,117490.0,117480.0,1.057853]
[1753806257894,1.00690271,117490.0,117480.0,1.214233]
[1753806258196,1.71478271,117490.0,117480.0,1.214233]
[1753806258396,1.6934386,117490.0,117480.0,1.214233]
[1753806258597,1.71467216,117490.0,117480.0,1.214233]
[1753806258797,1.71467216,117490.0,117480.0,0.70792]
[1753806259593,1.71467216,117490.0,117480.0,4e-05]
[1753806259790,1.71467248,117490.0,117480.0,4e-05]
[1753806259990,0.1702815,117460.0,117450.0,0.13008]
[1753806260304,0.63132501,117460.0,117450.0,1.29018055]
[1753806260494,0.99212501,117460.0,117450.0,1.213596]
[1753806260694,0.82184351,117460.0,117450.0,1.213596]
[1753806261002,0.46104351,117460.0,117450.0,1.213596]
[1753806261195,0.46104351,117460.0,117450.0,1.213636]
[1753806261501,0.25979351,117460.0,117450.0,1.218636]
[1753806261798,0.41273351,117460.0,117450.0,1.218636]
[1753806262200,0.46104351,117460.0,117450.0,1.218636]
[1753806262602,0.63132471,117460.0,117450.0,1.218636]
[1753806262792,0.99212471,117460.0,117450.0,1.216636]
[1753806262996,1.00122461,117460.0,117450.0,1.216636]
[1753806263197,1.00122461,117460.0,117450.0,1.213636]
[1753806263496,1.00122461,117460.0,117450.0,0.505716]
[1753806263704,1.00122461,117460.0,117440.0,8.55157096]
[1753806263705,0.6248159,117450.0,117440.0,7.71152491]
[1753806263902,0.9856159,117450.0,117440.0,7.71152491]
[1753806264206,1.06742245,117450.0,117440.0,7.63502036]
[1753806264506,1.06742245,117450.0,117440.0,7.71160491]
[1753806264899,1.06742245,117450.0,117440.0,7.63502036]
[1753806268907,0.89712635,117450.0,117440.0,7.63502036]
[1753806269299,1.06742265,117450.0,117440.0,7.63502036]
[1753806269605,0.89712635,117450.0,117440.0,7.63502036]
[1753806270504,1.06742265,117450.0,117440.0,7.63502036]
[1753806274813,0.86617265,117450.0,117440.0,6.92706036]
[1753806275103,1.06742265,117450.0,117440.0,7.63498036]
[1753806275710,1.06742265,117450.0,117440.0,6.92706036]
[1753806276011,2.1179726,117450.0,117440.0,6.84191676]
[1753806276202,2.1179726,117450.0,117440.0,7.54983676]
[1753806276508,2.1179726,117450.0,117440.0,6.84191676]
[1753806276710,2.1179726,117450.0,117440.0,7.54983676]
[1753806277098,1.77534265,117450.0,117440.0,7.54983676]
[1753806277301,1.77534265,117450.0,117440.0,6.67160596]
[1753806277510,1.77534265,117450.0,117440.0,7.37952596]
[1753806277909,1.77534265,117450.0,117440.0,7.54983676]
[1753806278109,1.77534265,117450.0,117440.0,6.84191676]
[1753806278303,1.77534265,117450.0,117440.0,7.37948596]
[1753806278811,2.01922426,117450.0,117440.0,7.37948596]
[1753806279011,2.01922426,117450.0,117440.0,7.54979736]
[1753806279211,2.01922426,117450.0,117440.0,6.67160596]
[1753806279514,2.01922426,117450.0,117440.0,6.84191736]
[1753806280207,1.77534265,117450.0,117440.0,6.84191736]
[1753806280506,2.01922426,117450.0,117440.0,6.84191736]
[1753806284318,2.01922426,117450.0,117440.0,6.67160596]
[1753806285315,2.18952026,117450.0,117440.0,6.36029686]
[1753806287510,2.20907356,117450.0,117440.0,6.36029686]
[1753806289013,2.20907356,117450.0,117440.0,6.55528686]
[1753806289208,2.20907356,117450.0,117440.0,6.36029686]
[1753806289816,2.20907356,117450.0,117440.0,6.40646686]
[1753806290016,2.20907356,117450.0,117440.0,6.55528686]
[1753806292611,1.96503195,117450.0,117440.0,6.36029686]
[1753806292817,2.20891356,117450.0,117440.0,6.55528686]
[1753806293319,1.50115356,117450.0,117440.0,6.55528686]
[1753806293519,0.63245595,117450.0,117440.0,6.72559996]
[1753806293718,0.63245595,117450.0,117440.0,7.43335996]
[1753806295030,0.61290265,117450.0,117440.0,7.43335996]
[1753806295230,0.61290265,117450.0,117440.0,6.72559996]
[1753806295425,1.32066265,117450.0,117440.0,6.72559996]
[1753806295626,1.34114101,117450.0,117440.0,6.72559996]
[1753806296025,0.63338101,117450.0,117440.0,7.43335996]
[1753806296327,1.34110101,117450.0,117440.0,7.43335996]
[1753806296929,1.34110101,117450.0,117440.0,7.43331996]
[1753806297939,1.34110633,117450.0,117440.0,7.43331996]
[1753806299231,1.32062265,117450.0,117440.0,7.43331996]
[1753806301737,1.32062265,117450.0,117440.0,6.55528686]
[1753806301738,1.58487628,117450.0,117440.0,6.55528686]
[1753806301932,1.84732628,117450.0,117440.0,6.55528686]
[1753806302543,1.84732628,117450.0,117440.0,6.40646686]
[1753806302831,0.92316628,117450.0,117440.0,6.72559966]
[1753806303031,0.63339467,117450.0,117440.0,6.72559966]
[1753806303233,1.34095467,117450.0,117440.0,6.55528686]
[1753806303443,1.58483628,117450.0,117440.0,6.55528686]
[1753806304235,1.58483628,117450.0,117440.0,6.72559966]